bitfinex/quotes_ETHUSD_20250916
["timestamp","ask_amount","ask_price","bid_price","bid_amount"]
[1758022232290,15.75720681,4508.4,4508.3,0.0018]
[1758022232505,15.75700979,4508.4,4508.3,0.0018]
[1758022233790,15.28800979,4508.4,4508.3,0.0018]
[1758022235784,11.45636254,4508.4,4508.3,0.0018]
[1758022235996,15.75700979,4508.4,4508.3,0.0018]
[1758022236976,14.54280979,4508.4,4508.3,0.0018]
[1758022237497,15.28800979,4508.4,4508.3,0.0018]
[1758022240612,10.98736254,4508.4,4508.3,0.0018]
[1758022240769,10.84280979,4508.4,4508.3,0.0018]
[1758022240965,14.54280979,4508.4,4508.3,0.0018]
[1758022241365,5.75016254,4508.4,4508.3,0.7559]
[1758022241564,9.45016254,4508.4,4508.3,1.2353]
[1758022242297,9.11779826,4508.4,4508.3,1.2353]
[1758022242493,6.89971646,4508.4,4508.3,1.2353]
[1758022243615,3.19971646,4508.4,4508.3,1.2353]
[1758022243769,0.08931646,4508.4,4508.3,3.577161]
[1758022244111,0.0004,4508.4,4508.3,3.577161]
[1758022244401,0.01554345,4508.5,4508.3,3.577161]
[1758022244402,0.01514345,4508.5,4508.3,3.577161]
[1758022244601,0.01514345,4508.5,4508.4,2.24026261]
[1758022244799,0.01514345,4508.5,4508.4,1.46268168]
[1758022245009,0.01514345,4508.5,4508.4,1.75528168]
[1758022245668,0.01514345,4508.5,4508.4,3.97336348]
[1758022245874,0.01514345,4508.5,4508.4,4.08376348]
[1758022246783,0.01514345,4508.5,4508.4,18.58376348]
[1758022246982,0.01434345,4508.5,4508.4,18.45118267]
[1758022247300,0.01434345,4508.5,4508.4,18.56158267]
[1758022248805,0.01634345,4508.5,4508.4,18.56158267]
[1758022249813,0.01634345,4508.5,4508.4,23.71836222]
[1758022250587,0.01634345,4508.5,4508.4,27.41736222]
[1758022253133,0.01634345,4508.5,4508.4,30.41736222]
[1758022253403,0.002,4508.6,4508.5,5.2180326]
[1758022253609,0.002,4508.6,4508.5,8.34776095]
[1758022253842,0.002,4508.6,4508.5,8.63956095]
[1758022254028,0.002,4508.6,4508.5,23.13956095]
[1758022254615,0.002,4508.6,4508.5,23.22843395]
[1758022255727,0.002,4508.6,4508.5,23.67532599]
[1758022256049,0.002,4508.6,4508.5,23.67612599]
[1758022262184,0.002,4509.0,4508.9,2.21783583]
[1758022262358,0.002,4509.0,4508.9,13.81357731]
[1758022262564,0.002,4509.0,4508.9,15.15089896]
[1758022262929,0.002,4509.0,4508.9,15.2397603]
[1758022263127,0.002,4509.0,4508.9,18.2397603]
[1758022266148,0.002,4509.0,4508.9,18.2405603]
[1758022266348,0.0012,4509.0,4508.9,18.2405603]
[1758022266676,0.0012,4509.0,4508.9,11.35668075]
[1758022267371,0.0012,4509.0,4508.9,11.04268075]
[1758022267580,0.0012,4509.0,4508.9,10.95381941]
[1758022267749,0.0012,4509.0,4508.9,11.26781941]
[1758022268463,0.0012,4509.0,4508.9,12.20291941]
[1758022271274,0.0012,4509.0,4508.9,26.70291941]
[1758022272277,0.0004,4509.0,4508.9,26.70291941]
[1758022277496,0.0004,4509.0,4508.9,25.45381941]
[1758022277873,0.0004,4509.0,4508.9,25.76781941]
[1758022279666,0.0004,4509.0,4508.9,26.70291941]
[1758022280295,1e-08,4509.1,4509.0,6.00978664]
[1758022280501,1e-08,4509.1,4509.0,9.16521499]
[1758022280696,1e-08,4509.1,4509.0,9.45611499]
[1758022280897,1e-08,4509.1,4509.0,23.95611499]
[1758022281301,0.4907,4510.2,4509.3,0.792]
[1758022281501,0.4907,4510.2,4509.7,10.77552195]
[1758022281803,0.4907,4510.2,4509.7,16.23669266]
[1758022282005,0.5007,4510.9,4509.7,16.69179266]
[1758022282301,0.4907,4510.5,4509.8,5.21739323]
[1758022282490,0.4907,4510.5,4509.8,7.86289323]
[1758022282691,0.439,4510.6,4509.8,8.15379323]
[1758022282892,0.4907,4510.4,4509.8,10.36792158]
[1758022283592,0.4907,4510.4,4509.9,6.00934406]
[1758022283790,0.449,4510.9,4509.9,6.00934406]
[1758022283791,0.4907,4510.6,4509.9,24.20534406]
[1758022284108,0.01,4510.9,4510.1,0.792]
[1758022284308,0.01,4510.9,4510.7,2.2169508]
[1758022284508,0.01,4510.9,4510.8,5.42316901]
[1758022284711,0.01,4510.9,4510.8,22.11790165]
[1758022285015,0.01,4510.9,4510.8,22.40880165]
[1758022285186,0.3188,4510.9,4510.8,24.33203]
[1758022285511,0.8095,4510.9,4510.8,20.63603]
[1758022285676,1.2485,4510.9,4510.8,24.33203]
[1758022285877,1.2485,4510.9,4510.8,22.11790165]
[1758022287502,1.2485,4510.9,4510.8,22.56425515]
[1758022287702,0.8095,4510.9,4510.8,18.86825515]
[1758022287913,0.01,4510.9,4510.8,22.56425515]
[1758022288219,0.01,4510.9,4510.8,24.7783835]
[1758022288420,0.0092,4510.9,4510.8,25.0692835]
[1758022289086,0.0092,4510.9,4510.8,28.8612835]
[1758022289298,0.0092,4510.9,4510.8,29.8017835]
[1758022291031,0.0092,4510.9,4510.8,29.8025835]
[1758022293105,0.0092,4510.9,4510.8,28.8620835]
[1758022293805,0.0092,4510.9,4510.8,29.3171835]
[1758022294004,0.0092,4510.9,4510.8,28.1804835]
[1758022294322,0.8087,4510.9,4510.8,27.8895835]
[1758022295428,1.2477,4510.9,4510.8,18.86905515]
[1758022295727,1.2477,4510.9,4510.8,22.56405515]
[1758022296133,1.2477,4510.9,4510.8,20.3471535]
[1758022296337,1.2477,4510.9,4510.8,2.1521535]
[1758022296498,1.37247,4510.9,4510.8,5.8471535]
[1758022297427,1.2469,4510.9,4510.8,5.8471535]
[1758022298838,1.2469,4510.9,4510.8,1.7058]
[1758022298999,1.2469,4510.9,4510.8,5.4008]
[1758022299327,1.2469,4510.9,4510.8,3.6958]
[1758022301850,1.2469,4510.9,4510.8,5.91270165]
[1758022302519,1.2469,4510.9,4510.8,3.6958]
[1758022303642,1.2469,4510.9,4510.8,6.35568209]
[1758022303945,1.2469,4510.9,4510.8,4.13978044]
[1758022304131,1.2489,4510.9,4510.8,4.13978044]
[1758022304520,1.2489,4510.9,4510.8,6.35668209]
[1758022304716,1.2489,4510.9,4510.8,4.13978044]
[1758022305332,0.3192,4510.9,4510.8,6.46708209]
[1758022305844,0.8099,4510.9,4510.8,6.46708209]
[1758022306512,0.3192,4510.9,4510.8,6.46708209]
[1758022306711,0.0104,4510.9,4510.8,6.75798209]
[1758022306944,0.0104,4510.9,4510.8,7.62638949]
[1758022307442,0.0104,4510.9,4510.8,22.61178949]
[1758022307744,0.0104,4510.9,4510.8,23.06688949]
[1758022310435,0.0096,4510.9,4510.8,23.06688949]
[1758022310636,0.0096,4510.9,4510.8,8.56688949]
[1758022310939,1.249,4510.9,4510.8,7.33548949]
[1758022311138,1.249,4510.9,4510.8,20.96708209]
[1758022311762,0.7809,4510.9,4510.8,20.96708209]
[1758022313365,0.0096,4510.9,4510.8,20.96708209]
[1758022314264,0.0096,4510.9,4510.8,22.18918209]
[1758022314464,0.0096,4510.9,4510.8,24.40331044]
[1758022316535,0.0096,4510.9,4510.8,9.90331044]
[1758022317137,0.0096,4510.9,4510.8,8.97141044]
[1758022317343,0.0096,4510.9,4510.8,8.68121044]
[1758022317542,0.3025,4510.9,4510.8,6.46708209]
[1758022317736,0.0096,4510.9,4510.8,6.46708209]
[1758022319730,0.0096,4510.9,4510.8,6.75388209]
[1758022319933,0.0096,4510.9,4510.8,6.46708209]
[1758022320533,0.0096,4510.9,4510.8,20.96708209]
[1758022320729,0.465,4510.9,4510.8,20.96708209]
[1758022321164,0.0096,4510.9,4510.8,22.67108209]
[1758022321365,0.0096,4510.9,4510.8,18.97608209]
[1758022321569,0.0096,4510.9,4510.8,22.67108209]
[1758022322234,0.0096,4510.9,4510.8,24.88521044]
[1758022322645,0.0088,4510.9,4510.8,24.88521044]
[1758022323231,0.0088,4510.9,4510.8,25.17201044]
[1758022323947,0.0088,4510.9,4510.8,25.61861044]
[1758022324178,0.0088,4510.9,4510.8,25.17201044]
[1758022324383,0.0088,4510.9,4510.8,26.07251044]
[1758022324589,0.0088,4510.9,4510.8,25.17201044]
[1758022326193,0.0088,4510.9,4510.8,24.88521044]
[1758022326774,0.3017,4510.9,4510.8,24.88521044]
[1758022326974,0.7571,4510.9,4510.8,24.88521044]
[1758022327866,0.0088,4510.9,4510.8,25.17201044]
[1758022328108,0.0088,4510.9,4510.8,26.07251044]
[1758022329262,0.0088,4510.9,4510.8,25.61861044]
[1758022329459,0.0088,4510.9,4510.8,26.07251044]
[1758022330082,0.0088,4510.9,4510.8,29.07251044]
[1758022332500,0.008,4510.9,4510.8,29.07251044]
[1758022334161,0.008,4510.9,4510.8,27.88521044]
[1758022334364,0.7563,4510.9,4510.8,27.88521044]
[1758022334976,0.4634,4510.9,4510.8,27.88521044]
[1758022335176,0.008,4510.9,4510.8,27.88521044]
[1758022335971,0.008,4510.9,4510.8,6.69021044]
[1758022335972,0.7563,4510.9,4510.8,6.69021044]
[1758022336172,1.2231,4510.9,4510.8,8.17108209]
[1758022337103,0.7563,4510.9,4510.8,2.25918044]
[1758022337404,1.2231,4510.9,4510.8,5.95318044]
[1758022337605,0.7563,4510.9,4510.8,8.17008209]
[1758022338707,0.008,4510.9,4510.8,22.95688209]
[1758022338895,0.008,4510.9,4510.8,26.07151044]
[1758022339100,0.008,4510.9,4510.8,25.62491044]
[1758022339900,0.3009,4510.9,4510.8,24.88421044]
[1758022340102,0.7563,4510.9,4510.8,24.88421044]
[1758022340286,0.7563,4510.9,4510.8,22.67008209]
[1758022341085,0.4634,4510.9,4510.8,22.67008209]
[1758022341291,0.008,4510.9,4510.8,22.67008209]
[1758022341973,0.008,4510.9,4510.8,8.47098209]
[1758022342205,0.008,4510.9,4510.8,10.52257016]
[1758022342406,0.008,4510.9,4510.8,25.02257016]
[1758022342788,0.008,4510.9,4510.8,24.91217016]
[1758022343001,0.008,4510.9,4510.8,25.02257016]
[1758022344111,0.008,4510.9,4510.8,24.08517016]
[1758022344414,0.008,4510.9,4510.8,23.78427016]
[1758022345313,0.7919,4510.9,4510.8,23.78427016]
[1758022345511,0.008,4510.9,4510.8,23.78427016]
[1758022346281,0.7919,4510.9,4510.8,18.97608209]
[1758022346572,1.2461,4510.9,4510.8,22.67008209]
[1758022346802,0.7919,4510.9,4510.8,22.67008209]
[1758022347712,0.7911,4510.9,4510.8,22.67008209]
[1758022349581,0.7911,4510.9,4510.8,8.17008209]
[1758022349782,0.0072,4510.9,4510.8,8.17008209]
[1758022350084,0.0072,4510.9,4510.8,23.70878967]
[1758022353131,0.7911,4510.9,4510.8,23.70878967]
[1758022353282,0.7911,4510.9,4510.8,8.17008209]
[1758022353488,0.3057,4510.9,4510.8,8.17008209]
[1758022353716,1.2453,4510.9,4510.8,20.45318044]
[1758022353893,1.2453,4510.9,4510.8,22.67008209]
[1758022354421,0.7911,4510.9,4510.8,22.67008209]
[1758022354625,0.7903,4510.9,4510.8,22.67008209]
[1758022355556,1.2445,4510.9,4510.8,20.45318044]
[1758022356215,1.2445,4510.9,4510.8,2.25918044]
[1758022356411,1.2445,4510.9,4510.8,5.95318044]
[1758022356824,0.7903,4510.9,4510.8,8.17008209]
[1758022358350,0.3049,4510.9,4510.8,8.17008209]
[1758022358649,1.2445,4510.9,4510.8,8.17008209]
[1758022359248,0.7903,4510.9,4510.8,8.17008209]
[1758022359657,0.4918,4510.9,4510.8,8.17008209]
[1758022360141,0.7903,4510.9,4510.8,8.17008209]
[1758022360956,0.0064,4510.9,4510.8,8.47098209]
[1758022361826,0.0064,4510.9,4510.8,8.17008209]
[1758022361827,0.4918,4510.9,4510.8,8.17008209]
[1758022362026,0.7903,4510.9,4510.8,8.17008209]
[1758022364965,0.4918,4510.9,4510.8,8.17008209]
[1758022365130,0.0064,4510.9,4510.8,8.17008209]
[1758022365757,0.7903,4510.9,4510.8,5.95318044]
[1758022367272,0.7903,4510.9,4510.8,8.17008209]
[1758022368240,0.4918,4510.9,4510.8,8.17008209]
[1758022368656,0.0064,4510.9,4510.8,8.17008209]
[1758022370542,0.4418,4511.1,4510.9,2.21681877]
[1758022370765,0.4562,4511.4,4511.0,3.694]
[1758022370993,0.4277,4511.3,4511.0,3.694]
[1758022371336,0.2985,4511.1,4511.0,3.694]
[1758022372574,0.7979,4511.1,4511.0,3.694]
[1758022372951,0.7971,4511.1,4511.0,3.694]
[1758022374598,0.7471,4511.1,4511.0,3.694]
[1758022375187,0.7491,4511.1,4511.0,3.694]
[1758022376065,1.1768,4511.1,4511.0,3.694]
[1758022377084,1.176,4511.1,4511.0,3.694]
[1758022378370,0.7483,4511.1,4511.0,3.694]
[1758022378582,0.7483,4511.1,4510.9,0.0008]
[1758022378583,2.21680336,4511.0,4510.9,0.0008]
[1758022378748,3.07371843,4511.0,4510.9,0.0008]
[1758022378956,4.54189467,4511.0,4510.9,0.0008]
[1758022379199,1.96629131,4511.0,4510.9,0.0008]
[1758022379493,3.56037601,4511.0,4510.9,0.0008]
[1758022379681,3.35270336,4511.0,4510.9,0.0008]
[1758022379892,3.56025895,4511.0,4510.9,0.0008]
[1758022380292,3.51025895,4511.0,4510.9,0.0008]
[1758022380447,3.30270336,4511.0,4510.9,0.0008]
[1758022380871,1.70468921,4511.0,4510.9,0.0008]
[1758022381076,3.92149257,4511.0,4510.9,0.0008]
[1758022381869,4.12890547,4511.0,4510.9,0.0008]
[1758022382684,3.92149257,4511.0,4510.9,0.0008]
[1758022382905,4.58801038,4511.0,4510.9,0.0008]
[1758022385402,2.01240702,4511.0,4510.9,0.0008]
[1758022385607,3.56269257,4511.0,4510.9,0.0008]
[1758022387798,3.92149257,4511.0,4510.9,0.0008]
[1758022391309,6.92149257,4511.0,4510.9,0.0008]
[1758022392702,7.01036161,4511.0,4510.9,0.0008]
[1758022393109,6.65156161,4511.0,4510.9,0.0008]
[1758022393508,6.40276161,4511.0,4510.9,0.0008]
[1758022393710,6.60316161,4511.0,4510.9,0.0008]
[1758022393910,6.96036161,4511.0,4510.9,0.0008]
[1758022394536,6.96236161,4511.0,4510.9,0.0008]
[1758022395505,7.29337563,4511.0,4510.9,0.0008]
[1758022395905,8.08537563,4511.0,4510.9,0.0008]
[1758022396111,8.29223506,4511.0,4510.9,0.0008]
[1758022396344,8.76882875,4511.0,4510.9,0.0008]
[1758022398141,8.76802875,4511.0,4510.9,0.0008]
[1758022399132,8.76719835,4511.0,4510.9,0.0008]
[1758022405476,6.11845251,4510.9,4510.8,0.001]
[1758022405630,13.0420176,4510.9,4510.8,0.001]
[1758022405828,14.1829176,4510.9,4510.8,0.001]
[1758022406230,14.27180639,4510.9,4510.8,0.001]
[1758022408555,0.792,4510.6,4510.3,1e-08]
[1758022408767,11.27324557,4510.4,4510.3,1e-08]
[1758022409072,14.68101676,4510.4,4510.3,1e-08]
[1758022409241,16.19416813,4510.4,4510.3,1e-08]
[1758022409832,15.9873087,4510.4,4510.3,1e-08]
[1758022410164,15.59828692,4510.4,4510.3,1e-08]
[1758022410566,18.94658692,4510.4,4510.3,1e-08]
[1758022410883,19.29328692,4510.4,4510.3,1e-08]
[1758022412100,18.94645616,4510.4,4510.3,1e-08]
[1758022412552,18.15225616,4510.4,4510.3,1e-08]
[1758022413185,18.85315616,4510.4,4510.3,1e-08]
[1758022415098,18.85305112,4510.4,4510.3,1e-08]
[1758022415656,18.85305112,4510.4,4510.3,0.00080001]
[1758022415657,19.29205112,4510.4,4510.3,0.00080001]
[1758022416647,19.55911361,4510.4,4510.3,0.00080001]
[1758022416856,0.792,4509.6,4509.3,0.001]
[1758022417157,11.16333723,4509.4,4509.3,0.001]
[1758022417353,14.82620314,4509.4,4509.3,0.001]
[1758022417555,12.97180314,4509.4,4509.3,0.001]
[1758022418451,12.97143094,4509.4,4509.3,0.001]
[1758022418776,13.59022015,4509.4,4509.3,0.001]
[1758022418980,16.49102015,4509.4,4509.3,0.001]
[1758022419163,12.79602015,4509.4,4509.3,0.2935]
[1758022419355,16.49202015,4509.4,4509.3,0.2935]
[1758022419554,16.49202015,4509.4,4509.3,0.001]
[1758022422822,16.97362015,4509.4,4509.3,0.001]
[1758022423206,17.19292015,4509.4,4509.3,0.001]
[1758022423520,17.19212015,4509.4,4509.3,0.001]
[1758022423828,17.85902468,4509.4,4509.3,0.001]
[1758022425990,17.63972468,4509.4,4509.3,0.0018]
[1758022427409,17.63905822,4509.4,4509.3,0.0018]
[1758022427976,17.02026901,4509.4,4509.3,0.0018]
[1758022428171,16.53866901,4509.4,4509.3,0.2943]
[1758022430234,12.84255137,4509.4,4509.3,0.2943]
[1758022430435,16.53855137,4509.4,4509.3,0.2943]
[1758022430796,16.53855137,4509.4,4509.3,0.0018]
[1758022431426,16.53858908,4509.4,4509.3,0.0018]
[1758022431817,16.53861174,4509.4,4509.3,0.0018]
[1758022432200,16.54061174,4509.4,4509.3,0.0018]
[1758022432687,16.54061174,4509.4,4509.3,0.3167]
[1758022432886,16.54061174,4509.4,4509.3,1.2179]
[1758022433082,11.38686443,4509.4,4509.3,0.3167]
[1758022433423,10.59486443,4509.4,4509.3,1.2179]
[1758022433585,7.69086443,4509.4,4509.3,1.2179]
[1758022433791,6.21632859,4509.4,4509.3,1.2179]
[1758022433990,6.78834077,4509.4,4509.3,1.2179]
[1758022434233,9.91243674,4509.4,4509.3,1.2179]
[1758022434581,9.24553221,4509.4,4509.3,1.2179]
[1758022438011,9.24602779,4509.4,4509.3,1.2179]
[1758022438213,9.24603286,4509.4,4509.3,1.2179]
[1758022440188,5.55003286,4509.4,4509.3,1.2179]
[1758022440494,9.24603286,4509.4,4509.3,1.2179]
[1758022440692,5.55003286,4509.4,4509.3,1.2179]
[1758022440892,9.24603286,4509.4,4509.3,1.2179]
[1758022441340,5.55003286,4509.4,4509.3,1.2179]
[1758022441523,9.24603286,4509.4,4509.3,1.2179]
[1758022441692,5.55003286,4509.4,4509.3,1.2179]
[1758022441888,9.24633598,4509.4,4509.3,1.2179]
[1758022442889,9.12193689,4509.4,4509.3,1.2179]
[1758022444044,9.24634357,4509.4,4509.3,0.0018]
[1758022444591,9.24634445,4509.4,4509.3,0.0018]
[1758022444989,9.33524964,4509.4,4509.3,0.0018]
[1758022445405,10.31994964,4509.4,4509.3,0.0018]
[1758022445624,16.52862764,4509.4,4509.3,0.0018]
[1758022445923,15.79616566,4509.4,4509.3,0.0018]
[1758022448222,16.26156566,4509.4,4509.3,0.0018]
[1758022448397,12.56556566,4509.4,4509.3,0.0018]
[1758022448727,16.26176566,4509.4,4509.3,0.0018]
[1758022449324,16.26186372,4509.4,4509.3,0.0018]
[1758022449490,3.792,4509.3,4509.1,1e-08]
[1758022449700,9.45322199,4509.2,4509.1,1e-08]
[1758022449911,11.08078739,4509.2,4509.1,1e-08]
[1758022452425,10.61808739,4509.2,4509.1,1e-08]
[1758022454037,6.23388739,4509.2,4509.1,1.24890001]
[1758022454327,11.32530671,4509.2,4509.1,1.24890001]
[1758022454527,15.02130671,4509.2,4509.1,1.24890001]
[1758022455032,14.81387066,4509.2,4509.1,1.24890001]
[1758022455327,10.32587066,4509.2,4509.1,1.24890001]
[1758022455527,14.02187066,4509.2,4509.1,1.24890001]
[1758022457337,9.72245134,4509.2,4509.1,1.24890001]
[1758022457544,0.33189766,4509.2,4509.1,1.24890001]
[1758022457697,2.21764503,4509.3,4509.1,1.24890001]
[1758022457900,0.1124,4509.4,4509.2,0.9393]
[1758022458103,0.31991648,4509.4,4509.2,0.9393]
[1758022458296,0.1124,4509.4,4509.3,1.2489]
[1758022458916,0.002,4509.4,4509.3,1.2489]
[1758022460007,0.002,4509.4,4509.3,1.2497]
[1758022460411,2.21958992,4509.4,4509.3,1.2497]
[1758022460610,0.002,4509.4,4509.3,1.2497]
[1758022461731,2.21958992,4509.4,4509.3,1.2497]
[1758022462026,2.21958992,4509.4,4509.3,0.3104]
[1758022462230,2.21958992,4509.4,4509.3,0.7678]
[1758022462621,2.21958992,4509.4,4509.3,1.2399]
[1758022467444,2.21958992,4509.4,4509.3,0.3104]
[1758022467826,2.21958992,4509.4,4509.3,0.0008]
[1758022468026,2.67738992,4509.4,4509.3,0.0008]
[1758022468361,5.91558992,4509.4,4509.3,0.3099]
[1758022469815,14.20750924,4509.4,4509.3,0.0008]
[1758022470031,15.12300924,4509.4,4509.3,0.0008]
[1758022470569,14.66530924,4509.4,4509.3,0.0008]
[1758022471341,9.51900924,4509.4,4509.3,0.0008]
[1758022471544,13.21900924,4509.4,4509.3,0.0008]
[1758022472141,13.67680924,4509.4,4509.3,0.0008]
[1758022473473,13.87730924,4509.4,4509.3,0.0008]
[1758022473772,13.87650924,4509.4,4509.3,0.0008]
[1758022475660,13.21820924,4509.4,4509.3,0.0008]
[1758022475860,13.21820924,4509.4,4509.3,0.3099]
[1758022476572,9.51820924,4509.4,4509.3,0.7673]
[1758022476752,8.91878992,4509.4,4509.3,1.2394]
[1758022478895,8.91878992,4509.4,4509.3,0.3099]
[1758022479084,13.21820924,4509.4,4509.3,0.0008]
[1758022479291,13.67600924,4509.4,4509.3,0.0008]
[1758022479510,13.21820924,4509.4,4509.3,1.2394]
[1758022480307,8.91778992,4509.4,4509.3,1.2394]
[1758022482268,9.12518073,4509.4,4509.3,0.0008]
[1758022482618,9.9079097,4509.4,4509.3,0.0008]
[1758022482812,9.9978097,4509.4,4509.3,0.0008]
[1758022483019,10.3664097,4509.4,4509.3,0.0008]
[1758022484407,15.45782902,4509.4,4509.3,0.0008]
[1758022484587,15.45800437,4509.4,4509.3,0.0008]
[1758022486598,15.93611559,4509.4,4509.3,0.0008]
[1758022487318,15.08940437,4509.4,4509.3,0.0008]
[1758022487727,14.79900437,4509.4,4509.3,0.0008]
[1758022488097,14.99950437,4509.4,4509.3,0.0008]
[1758022489123,15.47766545,4509.4,4509.3,0.0008]
[1758022490095,15.68523131,4509.4,4509.3,0.0008]
[1758022490828,15.02693131,4509.4,4509.3,0.0008]
[1758022491325,15.28976545,4509.4,4509.3,0.0008]
[1758022492117,15.49739124,4509.4,4509.3,0.0008]
[1758022492313,10.72657192,4509.4,4509.3,0.2869]
[1758022492523,7.02857192,4509.4,4509.3,0.2869]
[1758022492827,11.19697192,4509.4,4509.3,0.0008]
[1758022493031,10.98934613,4509.4,4509.3,0.0008]
[1758022493194,11.19697069,4509.4,4509.3,0.0008]
[1758022493627,10.72657069,4509.4,4509.3,0.0008]
[1758022494235,10.51917503,4509.4,4509.3,0.0008]
[1758022495131,10.7268153,4509.4,4509.3,0.0008]
[1758022495336,11.4300153,4509.4,4509.3,0.0008]
[1758022495635,11.8556153,4509.4,4509.3,0.0008]
[1758022496003,11.4300153,4509.4,4509.3,0.0008]
[1758022496405,11.43010662,4509.4,4509.3,0.0008]
[1758022496813,11.43025504,4509.4,4509.3,0.0008]
[1758022497016,10.72705504,4509.4,4509.3,0.3034]
[1758022497234,10.72705504,4509.4,4509.3,1.2058]
[1758022497432,10.72705504,4509.4,4509.3,0.3034]
[1758022497633,11.49895504,4509.4,4509.3,0.0008]
[1758022498423,10.72710637,4509.4,4509.3,0.0008]
[1758022498742,10.72710637,4509.4,4509.3,0.3034]
[1758022499039,10.72630637,4509.4,4509.3,0.3034]
[1758022499245,6.23630637,4509.4,4509.3,0.3034]
[1758022499534,6.23630637,4509.4,4509.3,1.2058]
[1758022499535,9.45391639,4509.4,4509.3,1.2058]
[1758022499718,9.93230637,4509.4,4509.3,1.2058]
[1758022499917,9.93230637,4509.4,4509.3,0.3034]
[1758022500520,10.70420637,4509.4,4509.3,0.0008]
[1758022501041,10.41450637,4509.4,4509.3,0.0008]
[1758022502138,10.70420637,4509.4,4509.3,0.0008]
[1758022503343,9.93230637,4509.4,4509.3,0.0008]
[1758022503522,9.93230637,4509.4,4509.3,1.2058]
[1758022503722,9.72461477,4509.4,4509.3,1.2058]
[1758022504040,9.93232109,4509.4,4509.3,1.2058]
[1758022504246,9.93232105,4509.4,4509.3,1.2058]
[1758022504442,9.93232105,4509.4,4509.3,0.3034]
[1758022504750,10.60262105,4509.4,4509.3,0.0008]
[1758022505812,6.90662105,4509.4,4509.3,0.0008]
[1758022506012,10.41452105,4509.4,4509.3,0.0008]
[1758022506445,10.60542105,4509.4,4509.3,0.0008]
[1758022506944,10.41452105,4509.4,4509.3,0.0018]
[1758022508116,10.41459917,4509.4,4509.3,0.0018]
[1758022508728,9.93239917,4509.4,4509.3,0.0018]
[1758022508944,9.93239917,4509.4,4509.3,0.3044]
[1758022509126,9.93239917,4509.4,4509.3,1.2068]
[1758022509315,9.93250293,4509.4,4509.3,1.2068]
[1758022510129,9.93265687,4509.4,4509.3,1.2068]
[1758022513553,9.93265687,4509.4,4509.3,0.3044]
[1758022514954,15.86456421,4509.4,4509.3,0.0018]
[1758022515156,17.2929267,4509.4,4509.3,0.0018]
[1758022515816,17.29273096,4509.4,4509.3,0.0018]
[1758022517959,19.62873096,4509.4,4509.3,0.0018]
[1758022518261,17.29273096,4509.4,4509.3,0.0018]
[1758022518458,17.02566847,4509.4,4509.3,0.0018]
[1758022519231,17.71241915,4509.4,4509.3,0.0018]
[1758022521868,17.11458571,4509.4,4509.3,0.0018]
[1758022522836,17.3816482,4509.4,4509.3,0.0018]
[1758022523364,17.97900651,4509.4,4509.3,0.0018]
[1758022523774,17.71194402,4509.4,4509.3,0.0018]
[1758022523973,17.34264402,4509.4,4509.3,0.0018]
[1758022524176,17.34184402,4509.4,4509.3,0.0018]
[1758022524678,17.34384402,4509.4,4509.3,0.0018]
[1758022526076,16.74648571,4509.4,4509.3,0.0018]
[1758022526274,12.27858571,4509.4,4509.3,0.3006]
[1758022526475,15.97458571,4509.4,4509.3,0.7632]
[1758022526661,15.97458571,4509.4,4509.3,1.2141]
[1758022527478,15.97458571,4509.4,4509.3,0.3006]
[1758022527851,15.97458571,4509.4,4509.3,0.7632]
[1758022529979,15.97458571,4509.4,4509.3,0.3006]
[1758022530182,15.97458571,4509.4,4509.3,0.0018]
[1758022530474,16.46428571,4509.4,4509.3,0.0018]
[1758022530685,15.97458571,4509.4,4509.3,0.0018]
[1758022532059,15.97378571,4509.4,4509.3,0.0018]
[1758022533068,12.76748571,4509.4,4509.3,0.0018]
[1758022533279,15.97378571,4509.4,4509.3,0.0018]
[1758022535872,15.97378571,4509.4,4509.3,0.3006]
[1758022536753,2.64086484,4509.4,4509.3,1.2141]
[1758022536953,2.5519476,4509.4,4509.3,1.33561]
[1758022537174,5.5519476,4509.4,4509.3,1.33561]
[1758022537487,3.33435768,4509.4,4509.3,1.33561]
[1758022537704,0.33435768,4509.4,4509.3,1.33561]
[1758022537865,0.002,4509.4,4509.3,1.33561]
[1758022538253,0.20972355,4509.4,4509.3,1.33561]
[1758022538707,0.002,4509.4,4509.3,1.33561]
[1758022549305,0.0012,4509.4,4509.3,1.33561]
[1758022554206,0.0004,4509.4,4509.3,1.33561]
[1758022555611,0.0004,4509.4,4509.3,1.35778639]
[1758022555981,0.0004,4509.4,4509.3,0.42211]
[1758022556297,0.0004,4509.4,4509.3,1.34601]
[1758022558524,0.0004,4509.4,4509.3,0.42211]
[1758022558895,0.0004,4509.4,4509.3,0.3006]
[1758022559806,0.7675,4509.4,4509.3,0.0018]
[1758022560532,0.4665,4509.4,4509.3,0.0018]
[1758022561094,0.0004,4509.4,4509.3,0.0018]
[1758022561397,0.6602,4509.4,4509.3,0.0018]
[1758022562107,2.87778992,4509.4,4509.3,0.0018]
[1758022562311,3.34208992,4509.4,4509.3,0.0018]
[1758022562998,2.87778992,4509.4,4509.3,0.0018]
[1758022563706,0.6602,4509.4,4509.3,0.0018]
[1758022563907,0.0004,4509.4,4509.3,0.317]
[1758022564229,2.21798992,4509.4,4509.3,0.317]
[1758022564809,0.0004,4509.4,4509.3,0.317]
[1758022565013,0.0004,4509.4,4509.3,1.2382]
[1758022566432,2.41168992,4509.4,4509.3,0.0018]
[1758022566642,3.67433225,4509.4,4509.3,0.0018]
[1758022566957,8.75977004,4509.4,4509.3,0.0018]
[1758022567414,9.55177004,4509.4,4509.3,0.0018]
[1758022567616,9.64067839,4509.4,4509.3,0.0018]
[1758022568004,10.2380367,4509.4,4509.3,0.0018]
[1758022568257,9.64067839,4509.4,4509.3,0.0018]
[1758022568663,10.2380367,4509.4,4509.3,0.0018]
[1758022569227,9.17637839,4509.4,4509.3,0.0018]
[1758022569454,9.64067839,4509.4,4509.3,0.0018]
[1758022569618,12.87137839,4509.4,4509.3,0.0018]
[1758022569818,11.47191479,4509.4,4509.3,0.0018]
[1758022571104,11.26428691,4509.4,4509.3,0.0018]
[1758022571522,10.7859406,4509.4,4509.3,0.0018]